Cogmind - Beta 15 @@@ ROGUE MODE // 2025.05.28 @ 15:43:48 Player: 7604 Result: Destroyed self with Rocket Launcher Performance ------------- Evolutions (0) 0 Regions Visited (2) 400 Robots Destroyed (48) 240 Value Destroyed (795) 795 Prototype IDs (0) 0 Alien Tech Used (0) 0 Bonus (0) 0 TOTAL SCORE: 1435 Bonus ------- None Cogmind --------- Core Integrity 0/250 Matter 210/300 Energy 160/160 System Corruption 0% Temperature Cool (0) Movement Core (550) Ox10 Location -10/Mines Parts ------- > --- POWER (1) -------- Light Nuclear Core > --- PROPULSION (2) --- (None) > --- UTILITY (2) ------ Improved Heat Sink Large Storage Unit > --- WEAPON (2) ------- Particle Gun Rocket Launcher > --- INVENTORY (15) --- Ion Engine Ion Engine Light Ion Engine Improved Heat Sink Seismic Detector Seismic Detector Seismic Detector Hacking Suite Hacking Suite Small Laser Light Cannon Datajack Mining Laser Peak State ------------ > --- POWER ------------ Light Nuclear Core > --- PROPULSION ------- Light Treads Light Treads > --- UTILITY ---------- Improved Heat Sink Small Storage Unit > --- WEAPON ----------- Small Laser Particle Gun > --- INVENTORY -------- Light Treads Seismic Detector Seismic Detector Seismic Detector Hacking Suite Hacking Suite Light Cannon Mining Laser [Rating: 13] Favorites ----------- Power Ion Engine Engine Ion Engine Power Core Light Nuclear Core Propulsion Light Treads Treads Light Treads Leg Aluminum Leg Utility Seismic Detector Device Seismic Detector Storage Small Storage Unit Weapon Small Laser Energy Gun Small Laser Ballistic Gun Assault Rifle Launcher Rocket Launcher Special Weapon Mining Laser Build | -11 -10 -10 ------- Run | Yrd Mat Min Slots Evolved . | . . . Power . | . . . Propulsion . | . . . Utility . | . . . Weapon . | . . . Parts Attached 24 | 10 13 1 Power 5 | 1 4 . Engine 4 | 1 3 . Core 1 | . 1 . Reactor . | . . . Propulsion 5 | 4 1 . Treads 3 | 2 1 . Leg 2 | 2 . . Wheel . | . . . Hover . | . . . Flight . | . . . Utility 7 | 2 5 . Device 5 | 1 4 . Storage 2 | 1 1 . Processor . | . . . Hackware . | . . . Protection . | . . . Artifact . | . . . Weapon 7 | 3 3 1 Energy Gun 3 | 1 2 . Energy Cannon . | . . . Ballistic Gun 2 | 2 . . Ballistic Cannon . | . . . Launcher 1 | . . 1 Special Weapon 1 | . 1 . Impact Weapon . | . . . Slashing Weapon . | . . . Piercing Weapon . | . . . Special Melee Weapon . | . . . Unidentified Prototypes . | . . . Parts Lost 7 | . 6 1 Power 2 | . 2 . Propulsion 3 | . 2 1 Utility . | . . . Weapon 2 | . 2 . Highest Loss Streak 1 | . 1 1 To Critical Strikes . | . . . Average Backups 7 | 4 7 10 Power . | . . 1 Propulsion . | . . . Utility 3 | 1 3 6 Weapon 2 | 1 2 2 Tool/Special . | . . . Unused Backups 10 | . 2 8 Power 4 | . 1 3 Propulsion . | . . . Utility 4 | . 1 3 Weapon 1 | . . 1 Tool/Special 1 | . . 1 Average Slot Usage (%) 95 | . 98 82 Engine 5 | . 7 . Core 7 | . 6 14 Treads 23 | . 26 11 Device 14 | . 14 14 Storage 14 | . 14 14 Energy Gun 19 | . 16 27 Ballistic Gun 8 | . 10 . Peak Build Rating 13 | 7 13 12 Average Rating 8 | 6 8 10 On Entrance 5 | . 7 10 Naked Turns . | . . . Heaviest Build 30 | 15 30 30 Greatest Support 40 | 40 40 20 Greatest Overweight (x) 9 | . 1 9 Average Overweight (x) . | . . 1 Largest Inventory Capacity 15 | 8 15 15 Average Capacity 9 | 7 8 15 Most Carried 13 | 6 8 13 Average Carried 7 | 4 7 10 Final Capacity 15 | 8 15 15 Final Carried 13 | 6 8 13 Class Distribution -------------------- 98% | Mutant Dominant Class ---------------- Mutant | -10/Materials Mutant | -10/Mines Resources | -11 -10 -10 ----------- Run | Yrd Mat Min Matter Collected 764 | 354 368 42 Remotely . | . . . Salvage Created 1174 | 174 846 154 Parts 97 | 18 53 26 Haulers Intercepted 2 | . 2 . Recyclers Shooed 2 | . 1 1 Parts Field Recycled . | . . . Retrieved Matter . | . . . Parts Self-Destructed . | . . . Prevented . | . . . Kills | -11 -10 -10 ------- Run | Yrd Mat Min Combat Hostiles Destroyed 27 | . 19 8 Guns 21 | . 19 2 AOE 6 | . . 6 Classes Destroyed 8 | 1 5 2 Builder 1 | . . 1 Tunneler 10 | 9 . 1 Hauler 2 | . 2 . Recycler 2 | . . 2 Operator 3 | . 3 . Watcher 3 | . 3 . Swarmer 14 | . 6 8 Grunt 13 | . 13 . Best Kill Streak 3 | 3 3 3 Combat Bots Only 3 | . 3 3 Max Kills in Single Turn 2 | 1 1 2 Gunslinging . | . . . Exploded 2 | . . 2 Melee . | . . . Uniques/NPCs Destroyed . | . . . Combat | -11 -10 -10 -------- Run | Yrd Mat Min Hostile Shots Fired 125 | . 100 25 Missed 30 | . 21 9 Hits 95 | . 79 16 Projectile 95 | . 79 16 Damage Taken 1143 | . 901 242 Core 253 | . 160 93 Absorbed by Shields . | . . . Core Remaining (%) 100 | 100 . . Volleys Fired 126 | 18 85 23 Largest 2 | 2 2 2 Hottest 105 | 70 105 105 Shots Fired 239 | 36 167 36 Gun 230 | 36 165 29 Cannon . | . . . Launcher 7 | . . 7 Special 2 | . 2 . Kinetic 92 | 18 74 . Thermal 140 | 18 93 29 Explosive 7 | . . 7 Electromagnetic . | . . . Robot Hit Streak 16 | 8 16 5 Robot Miss Streak 3 | 2 3 1 Penetration Max . | . . . Secondary Targets 2 | . 2 . Max Gunslinging Chain 1 | . 1 . Shots Hit Robots 155 | 24 112 19 Core Hits 71 | 9 47 15 Critical Kills . | . . . Critical Parts Destroyed . | . . . Critical Strikes 7 | 1 6 . Burn 7 | 1 6 . Melee Attacks . | . . . Impact . | . . . Slashing . | . . . Piercing . | . . . Sneak Attacks . | . . . Combat Hostiles . | . . . Follow-up Attacks . | . . . Damage Inflicted 2496 | 301 1398 797 Guns 1938 | 301 1394 243 Cannons . | . . . Explosions 554 | . . 554 Melee . | . . . Ramming 4 | . 4 . Kinetic 703 | 150 553 . Thermal 1235 | 151 841 243 Explosive 554 | . . 554 Electromagnetic . | . . . Impact . | . . . Slashing . | . . . Piercing . | . . . Highest Corruption . | . . . Average Corruption . | . . . Corruption Purged . | . . . Corruption Blocked . | . . . Overload Shots . | . . . Overflow Damage 46 | . . 46 Projectiles . | . . . Explosions 46 | . . 46 Melee . | . . . Knockbacks . | . . . Impact . | . . . Kinetic . | . . . Secondary . | . . . Self-Inflicted Damage 114 | . . 114 Shots 3 | . . 3 Rammed 2 | . 2 . Targets Rammed 2 | . 2 . Kicked . | . . . Crushed . | . . . Highest Temperature 204 | 27 144 204 Average Temperature 37 | 11 37 59 Received Heat Transfer 384 | . 384 . Siege Activations . | . . . Martial Activations . | . . . Shielding Activations . | . . . Robots Disrupted . | . . . Combat Hostiles . | . . . Robots Corrupted . | . . . Combat Hostiles . | . . . Parts Fried . | . . . Impact Corruptions . | . . . Robots Melted . | . . . Combat Hostiles . | . . . Parts Melted 7 | 1 6 . Heat Transferred 3690 | 518 2602 570 Parts Sabotaged . | . . . Parts Stolen . | . . . Parts Stripped . | . . . Power Chain Reactions . | . . . Alert | -11 -10 -10 ------- Run | Yrd Mat Min Maximum Alert Level . | . . . Low Security (%) 100 | 100 100 100 Level 1 . | . . . Level 2 . | . . . Level 3 . | . . . Level 4 . | . . . Level 5 . | . . . High Security . | . . . Max Security . | . . . Peak Influence 133 | 10 133 82 Initial 42 | . . 42 Average 47 | 1 62 28 Influence Increases 946 | 45 647 254 Destroy 0b10 Robot/C 540 | . 380 160 Destroy 0b10 Robot/NC 105 | 45 40 20 Destroy Leader 120 | . 90 30 Successful Hack 43 | . 43 . Select Force Hacks 60 | . 60 . Destroy Structure 48 | . 4 44 Lose Combat Pursuer 30 | . 30 . Influence Decreases 836 | 45 537 254 Entered New Map 68 | . . 68 Time Decay 698 | 45 477 176 Lost Part 70 | . 60 10 Squads Dispatched 6 | . 6 . Investigation 3 | . 3 . Extermination . | . . . Reinforcement 3 | . 3 . Assault . | . . . Garrison . | . . . Intercept . | . . . Searches Triggered . | . . . Construction Impeded . | . . . Haulers Reinforced . | . . . Active Scanning Responses . | . . . Cargo Convoy Interrupts . | . . . Stealth | -11 -10 -10 --------- Run | Yrd Mat Min Distress Signals . | . . . Communications Jammed . | . . . Distress Signals . | . . . Times Spotted 41 | . 32 9 Peak Tracking Total 3 | . 3 3 Tactical Retreats 2 | . 2 . Traps | -11 -10 -10 ------- Run | Yrd Mat Min Traps Triggered 2 | . 2 . Indirectly . | . . . Trap Hack Attempts . | . . . Triggered . | . . . Disarmed . | . . . Reprogrammed . | . . . Reused . | . . . Traps Extracted . | . . . Installed . | . . . Triggered . | . . . Machines | -11 -10 -10 ---------- Run | Yrd Mat Min Machines Disabled . | . . . Max in Single Turn . | . . . Machines Repaired . | . . . Machines Dismantled . | . . . Machines Sabotaged . | . . . Overloaded Fab Kills . | . . . Hacking | -11 -10 -10 --------- Run | Yrd Mat Min Machines Accessed 8 | . 8 . Terminals 6 | . 6 . Fabricators . | . . . Repair Stations . | . . . Recycling Units 2 | . 2 . Scanalyzers . | . . . Garrison Access . | . . . Total Hacks 23 | . 23 . Successful 14 | . 14 . Failed 9 | . 9 . Catastrophic . | . . . Database Lockouts . | . . . Manual 21 | . 21 . Terminals 19 | . 19 . Fabricators . | . . . Repair Stations . | . . . Recycling Units 4 | . 4 . Scanalyzers . | . . . Garrison Access . | . . . Terminal Hacks 4 | . 4 . Part Schematic 1 | . 1 . Robot Schematic 1 | . 1 . Robot Analysis 2 | . 2 . Fabricator Hacks . | . . . Repair Station Hacks . | . . . Recycling Unit Hacks 2 | . 2 . Retrieve Components 2 | . 2 . Scanalyzer . | . . . Garrison Access Hacks . | . . . Unauthorized Hacks 8 | . 8 . Terminals 6 | . 6 . Botnet 2 | . 2 . Operators 1 | . 1 . Skim 3 | . 3 . Fabricators . | . . . Repair Stations . | . . . Recycling Units 2 | . 2 . Tunnel 2 | . 2 . Scanalyzers . | . . . Garrison Access . | . . . Data Cores Recovered . | . . . Used . | . . . Hacking Detections 6 | . 6 . Full Trace Events . | . . . Feedback Events . | . . . Feedback Blocked . | . . . Robot Schematics Acquired 1 | . 1 . Robots Built . | . . . Authchips . | . . . Time . | . . . Total Robot Build Rating . | . . . Part Schematics Acquired 1 | . 1 . Parts Built . | . . . Authchips . | . . . Time . | . . . Total Part Build Rating . | . . . Parts Repaired . | . . . Time . | . . . Parts Recycled . | . . . Recycled Matter . | . . . Retrieved Matter . | . . . Retrieved Components 14 | . 14 . Parts Scanalyzed . | . . . Part Schematics Acquired . | . . . Parts Damaged . | . . . Bothacking | -11 -10 -10 ------------ Run | Yrd Mat Min Used RIF Installer . | . . . Robots Hacked . | . . . Non-combat . | . . . Combat . | . . . Robot Hacks Applied . | . . . Relay Couplers Released . | . . . Fabnet Peak Effective % . | . . . Robots Rewired . | . . . Allies Hacked . | . . . Hacks Repelled . | . . . Allies | -11 -10 -10 -------- Run | Yrd Mat Min Total Allies . | . . . Largest Group . | . . . Highest-Rated Group . | . . . Highest-Rated Ally . | . . . Total Orders . | . . . Ally Attacks . | . . . Total Damage . | . . . Kills . | . . . Allies Corrupted . | . . . Allies Melted . | . . . Intel | -11 -10 -10 ------- Run | Yrd Mat Min Active Infowar (turns) 2750 | 288 2008 454 Terrain 40 | . 40 . Seismic 2710 | 288 1968 454 Robot Analysis Total 2 | . 2 . Derelict Logs Recovered 1 | . . 1 Drone Launches . | . . . Drone Recoveries . | . . . Exploration | -11 -10 -10 ------------- Run | Yrd Mat Min Turns Passed 2988 | 420 2043 525 Spaces Moved 1405 | 220 1015 170 Core 15 | 9 . 6 Treads 1377 | 198 1015 164 Legs 13 | 13 . . Wheels . | . . . Hover . | . . . Flight . | . . . Fastest Speed 50 | 50 160 240 Average Speed 173 | 153 164 249 Slowest Speed 500 | 160 240 500 Overloaded Moves . | . . . Propulsion Burnouts . | . . . Robots Hopped . | . . . Potential Cave-ins . | . . . Cave-ins Triggered . | . . . Exploration Rate (%) 56 | 7 99 63 Regions Visited 2 Branch Regions 1 Pre-discovered Areas 2 | . 2 . Known Exits Taken . | . . . Unknown Exits Taken 2 | 1 1 . Scrap Searched 1 | . . 1 Spaces Dug 34 | . 2 32 Terrain Destroyed 49 | . 2 47 Melee . | . . . Projectile 2 | . 2 . AOE 47 | . . 47 Terrain Rammed . | . . . Walls Destroyed . | . . . Machines Disabled . | . . . Actions | -11 -10 -10 --------- Run | Yrd Mat Min Total 1713 | 265 1214 234 Wait 118 | 8 80 30 Move 1403 | 219 1014 170 Hop . | . . . Pick Up 19 | 6 8 5 Fast Attach 10 | 8 2 . Attach 5 | 1 4 . Detach 2 | 2 . . Swap 19 | 1 12 6 Drop 9 | 2 7 . Fire 126 | 18 85 23 Melee . | . . . Ram . | . . . Kick . | . . . Crush 2 | . 2 . Escape Stasis . | . . . Rewire . | . . . Trap . | . . . Miscellaneous . | . . . Route ------- -11/Scrapyard -10/Materials (discovered 5 exits: [*Mat x3] / [*Min] / [*Sub]) -10/Mines (discovered 1 exit: [*Mat]) History --------- Turn | Location | Event 7 | -11/Scrapyard | Discovered new exit (range 15) 421 | -11/Scrapyard | Entered Materials 422 | -10/Materials | Build established: Mutant 675 | -10/Materials | Discovered new exit (range 8) 854 | -10/Materials | Discovered new exit (range 13) 1512 | -10/Materials | Core integrity fell below 50% 1736 | -10/Materials | Discovered new exit (range 8) 2029 | -10/Materials | Discovered new exit (range 16) 2260 | -10/Materials | Discovered new exit (range 16) 2464 | -10/Materials | Entered Mines 2525 | -10/Mines | Received a Rocket Launcher from a helpful Derelict 2703 | -10/Mines | Found DCF Scrap (16 items) 2720 | -10/Mines | Learned Materials terminal intel 2765 | -10/Mines | Discovered new exit (range 11) 2888 | -10/Mines | Core integrity fell below 20% 2989 | -10/Mines | Destroyed self with Rocket Launcher Last Messages --------------- 02914_ U-05 Engineer builds a Wall. 02919_ U-05 Engineer lays Concrete. 02930_ R-06 Scavenger collects Lgt. Assault Rifle. 02932_ Destroyed Tractor Beam. 02932_ U-05 Engineer lays Concrete. 02934_ K-01 Serf collects debris. 02934_ U-05 Engineer lays Concrete. 02938_ K-01 Serf collects debris. 02938_ U-05 Engineer lays Concrete. 02947_ U-05 Engineer destroyed. 02950_ T-07 Excavator destroyed. 02963_ R-06 Scavenger destroyed. 02979_ R-06 Scavenger collects Mining Laser. 02983_ R-06 Scavenger collects Wheel. 02986_ R-06 Scavenger collects Seismic Detector. 02987_ S-10 Pest destroyed. 02988_ The unstable cave ceiling collapses. 02989_ R-06 Scavenger destroyed. 02989_ S-10 Pest destroyed. Map ----- +----------------------------------------------------+ | ???# #????### ? ##??????????????????? | | ???# ###### #???? #??????????????????? | | ???# ##??? #??????#???????????? | | ???# ##?? #?????? ##??????????? | | ???######## ### ##???? #??????????? | | ??????????## < ##??# #??????????? | | ???????????### ### #??????????? | | ?????????????## #??????????? | | ??????????????# #???????????? | | ??????????????# #????????????? | | ??????????????## #????????????? | | ???????????????##### #????????????? | | ???????????????????## #???????????? | | ????????????????????# # ## #??????????? | | ??????????????????### # #??? #??????????? | | ??????????????????# #????? ##??????????? | | ??????????????????# ####??????????????????? | | ???????????????#### #?????????????????????? | | ???????????????# #?????????????????????? | | ???????######### #####?????????##??????????? | | ???????# #?????????## #??????????? | | ?????### ########??????? s=%[ ?????????? | | ????## #??????????### =???????????? | | ????# #???####?? *%[ #??????????????? | | ???## ##?## ### !*= #??????????????? | | ??## ### @ %|= #??????????????? | | ??# != #???????????????? | | ??# [[ ##???????????????? | | ??# ### !%* ##???????????????? | | ??# ### !%*= #??????????????? | | ??# ## = #??????????????? | | ??# ## = = #??????????????? | | ??# = #??????????????? | | ??## ## #??????????????? | | ???## ####### # ##??????????????? | | ????###??????## # #####???????????????? | | ??????????????## ##???????????????????? | | ???????????????########????????????????????? | | ???????????????????????????????????????????? | | | | | | | | | | | | | | | | | | | | | | | +----------------------------------------------------+ Best States ------------- Heat Dissipation 39 Energy Generation 14 Energy Capacity 250 Matter Stores 300 Matter Capacity 300 Sight Range 16 Terrain Scan Range 16 Terrain Scan Density 10 Evasion (%) 55 Recoil Reduction 2 Item Schematics ----------------- Huge Storage Unit | -10/Materials | Hacked Robot Schematics ------------------ M-13 Machinist | -10/Materials | Hacked Fabricated ------------ Nothing Repaired ---------- Nothing Alien Tech Used ----------------- None Achievements -------------- None Challenges ------------ None Game ------ Seed CoilThermicTurbovents Manual? 0 Play Time 00:16:59 Cumulative 393.2 hours Start 2025.05.28 @ 15:28:05 End 2025.05.28 @ 15:43:48 Sessions 1 Manual Loads 0 Difficulty Rogue Special Mode None Game No. 191 Rogue 128 Adventurer 63 Explorer 0 Win Type - Total 8 Types 7/0/0/1/0/0/0/0/0/0 Lore% 84 Gallery% 77 Achievement% 64 Wizard Run 0 Options --------- Layout 2 ASCII 0 Keyboard 1 Movement Numpad Keybinds 0 Fullscreen 1 Font 24/Terminus Map View 50x44 Zoom Use 0% Tactical HUD 1 Map Filters NONE Filters NONE Steam 1 RUN: 07173f2f-cf56-48fe-8a94-4402ab3e575b